bitfinex-derivatives/quotes_SOLF0:USTF0_20250603
["timestamp","ask_amount","ask_price","bid_price","bid_amount"]
[1748910368261,0.04070137,158.27,158.26,6.3156]
[1748910370259,1.37e-06,158.27,158.26,6.3156]
[1748910383866,1.37e-06,158.27,158.26,17.19629013]
[1748910385368,35.4,158.38,158.26,10.88069013]
[1748910385566,35.4,158.41,158.33,10.88069013]
[1748910385768,35.4,158.41,158.37,6.3108]
[1748910386372,41.74824991,158.41,158.37,0.04470828]
[1748910387569,35.43864991,158.41,158.37,6.35570828]
[1748910387767,35.43864991,158.41,158.37,0.04470828]
[1748910389169,35.43864991,158.41,158.37,6.35580828]
[1748910389362,35.43864991,158.41,158.37,0.04470828]
[1748910389870,6.3101,158.4,158.37,0.04470828]
[1748910390373,41.74824991,158.41,158.37,0.04470828]
[1748910390767,35.43864991,158.41,158.37,0.04470828]
[1748910391568,35.43864991,158.41,158.37,6.35560828]
[1748910392368,0.03864991,158.41,158.37,7.37873331]
[1748910392875,0.03864991,158.41,158.4,6.31]
[1748910394472,0.03864991,158.41,158.39,7.33402503]
[1748910394675,0.03864991,158.41,158.37,7.37873331]
[1748910395171,0.03864991,158.41,158.37,0.04470828]
[1748910395773,6.34844991,158.41,158.37,0.04470828]
[1748910395972,0.03864991,158.41,158.37,0.04470828]
[1748910396874,7.37267494,158.41,158.37,0.04470828]
[1748910397273,6.3104,158.39,158.37,0.04470828]
[1748910398475,6.3101,158.4,158.37,0.04470828]
[1748910400677,7.37267494,158.41,158.37,0.04470828]
[1748910400879,7.33402503,158.39,158.37,0.04470828]
[1748910401075,13.64462503,158.39,158.37,0.04470828]
[1748910401983,35.32,158.4,158.37,0.04470828]
[1748910402182,0.03864991,158.41,158.37,0.04470828]
[1748910403285,0.03864991,158.41,158.38,6.3107]
[1748910404080,0.03864991,158.41,158.37,0.04470828]
[1748910404482,0.03864991,158.41,158.38,6.3105]
[1748910405286,0.03864991,158.41,158.39,6.3103]
[1748910406290,0.03864991,158.41,158.37,0.04470828]
[1748910406692,0.03864991,158.41,158.38,6.3107]
[1748910407095,0.03864991,158.41,158.37,0.04470828]
[1748910407385,6.34844991,158.41,158.37,0.04470828]
[1748910408292,0.03864991,158.41,158.37,0.04470828]
[1748910408990,0.03864991,158.41,158.38,6.3105]
[1748910410096,0.03864991,158.41,158.39,6.3104]
[1748910410998,0.03864991,158.41,158.38,6.3106]
[1748910411505,0.03864991,158.41,158.37,6.35570828]
[1748910412203,7.33402503,158.4,158.37,6.35580828]
[1748910412402,7.33402503,158.4,158.37,0.04470828]
[1748910412603,7.33402503,158.4,158.38,6.3108]
[1748910414110,7.33402503,158.4,158.37,6.35570828]
[1748910414304,7.33402503,158.4,158.37,0.04470828]
[1748910414811,7.33402503,158.4,158.37,6.35560828]
[1748910415005,7.33402503,158.4,158.37,0.04470828]
[1748910415605,7.33402503,158.4,158.37,6.35570828]
[1748910415807,0.03864991,158.41,158.37,0.04470828]
[1748910416013,7.37267494,158.41,158.37,0.04470828]
[1748910416211,7.37267494,158.41,158.38,6.3107]
[1748910417911,7.37267494,158.41,158.37,0.04470828]
[1748910418702,7.33402503,158.39,158.37,0.04470828]
[1748910418905,35.32,158.38,158.31,4.0845]
[1748910419210,7.33402503,158.36,158.34,6.312]
[1748910419809,7.33402503,158.36,158.33,6.3126]
[1748910420012,7.37477954,158.36,158.33,6.36036379]
[1748910420315,7.37477954,158.36,158.33,0.04776379]
[1748910420510,7.33402503,158.34,158.33,0.04776379]
[1748910420917,42.65402503,158.34,158.33,0.04776379]
[1748910426820,48.96642503,158.34,158.33,0.04776379]
[1748910427019,48.96642503,158.34,158.23,5.76761483]
[1748910427020,42.65402503,158.34,158.23,5.76761483]
[1748910427315,7.33402503,158.31,158.2,5.76761483]
[1748910427624,7.33402503,158.25,158.2,5.76761483]
[1748910427818,7.33402503,158.25,158.19,5.76761483]
[1748910428124,7.33402503,158.23,158.2,0.04640305]
[1748910429024,7.33402503,158.23,158.2,6.36430305]
[1748910431919,0.0419719,158.24,158.2,0.04640305]
[1748910432818,0.0419719,158.24,158.22,6.3169]
[1748910433024,0.0419719,158.24,158.2,0.04640305]
[1748910433219,0.0419719,158.24,158.23,6.3168]
[1748910434728,7.37599693,158.24,158.2,0.04640305]
[1748910435622,13.69269693,158.24,158.2,0.04640305]
[1748910435818,7.33402503,158.22,158.2,0.04640305]
[1748910436019,6.3176,158.21,158.2,0.04640305]
[1748910436222,41.5976,158.21,158.2,0.04640305]
[1748910436521,35.28,158.21,158.14,6.3203]
[1748910436721,7.33402503,158.19,158.12,2.1665]
[1748910436922,7.33402503,158.17,158.12,2.1665]
[1748910437221,42.61402503,158.17,158.12,2.1665]
[1748910437518,42.61402503,158.17,158.11,220.2539402]
[1748910437519,7.33402503,158.15,158.13,0.04415375]
[1748910439223,10.94533309,158.16,158.13,0.04415375]
[1748910440826,17.26493309,158.16,158.13,0.04415375]
[1748910442115,6.3201,158.15,158.13,0.04415375]
[1748910442323,10.94533309,158.16,158.13,0.04415375]
[1748910442725,10.90091589,158.14,158.13,0.04415375]
[1748910443622,17.22131589,158.14,158.13,0.04415375]
[1748910444232,10.90091589,158.14,158.13,0.04415375]
[1748910444827,10.90091589,158.14,158.05,2.0693]
[1748910445028,10.90091589,158.12,158.05,2.0693]
[1748910445327,17.22211589,158.12,158.07,6.3232]
[1748910445523,10.90091589,158.08,158.02,2.55397415]
[1748910445827,46.24813765,158.07,158.03,0.04056895]
[1748910446026,35.3,158.06,158.03,0.04173674]
[1748910446230,35.3,158.06,158.03,6.36643674]
[1748910446530,35.3,158.06,158.03,0.04173674]
[1748910446929,35.3,158.06,158.03,6.36623674]
[1748910447135,35.3,158.06,158.03,0.04173674]
[1748910448027,35.3,158.06,158.05,6.324]
[1748910448230,35.3,158.06,158.03,0.04173674]
[1748910448630,10.90091589,158.05,158.03,0.04173674]
[1748910448830,35.3,158.06,158.03,0.04173674]
[1748910449020,46.20091589,158.06,158.03,0.04173674]
[1748910451128,10.90091589,158.04,158.03,0.04173674]
[1748910452123,10.90091589,158.04,157.89,35.32]
[1748910452432,10.90091589,157.98,157.89,41.7315]
[1748910452629,35.32,157.97,157.93,6.3286]
[1748910453031,10.90091589,157.96,157.89,6.4115]
[1748910453227,0.0470126,157.94,157.91,0.04243935]
[1748910453427,0.0470126,157.94,157.92,6.329]
[1748910454033,10.94792849,157.94,157.92,6.329]
[1748910454236,35.32,157.93,157.92,6.329]
[1748910454430,35.32,157.93,157.91,0.04243935]
[1748910454835,10.90091589,157.92,157.91,0.04243935]
[1748910455232,10.90091589,157.92,157.84,6.4094]
[1748910455439,10.90091589,157.9,157.84,6.4094]
[1748910456044,10.90091589,157.88,157.84,2.0629]
[1748910456336,35.36816383,157.88,157.84,0.04729784]
[1748910457137,35.36816383,157.88,157.87,6.3313]
[1748910459237,35.36816383,157.88,157.84,0.04729784]
[1748910459836,35.36816383,157.88,157.87,6.3313]
[1748910460040,0.04816383,157.88,157.87,6.3313]
[1748910460243,35.26,157.94,157.85,46.16091589]
[1748910460436,35.26,157.94,157.86,2.126]
[1748910460844,35.26,157.94,157.93,6.3289]
[1748910461037,35.26,157.94,157.87,2.0545]
[1748910461240,0.04155739,157.92,157.91,6.3294]
[1748910462638,10.94247328,157.92,157.9,6.33]
[1748910463341,0.04155739,157.92,157.91,6.3297]
[1748910465946,35.28,157.97,157.89,10.94792576]
[1748910466147,46.18091589,157.97,157.87,10.90091589]
[1748910466342,52.50821589,157.97,157.87,10.90091589]
[1748910466650,41.6073,157.97,157.86,37.406]
[1748910466845,0.04297903,157.93,157.9,0.04073156]
[1748910467046,0.04297903,157.93,157.92,6.3293]
[1748910472946,0.04297903,157.93,157.91,6.3296]
[1748910473152,0.04297903,157.93,157.9,0.04073156]
[1748910473553,0.04297903,157.93,157.91,6.3294]
[1748910473957,0.04297903,157.93,157.9,0.04073156]
[1748910474156,0.04297903,157.93,157.91,6.3294]
[1748910474456,0.04297903,157.93,157.9,0.04073156]
[1748910474855,0.04297903,157.93,157.91,6.3297]
[1748910475355,0.04297903,157.93,157.9,0.04073156]
[1748910475558,0.04297903,157.93,157.92,6.3293]
[1748910486065,675.3,158.03,157.91,35.28]
[1748910486066,35.28,158.0,157.91,35.28]
[1748910486267,35.28,158.0,157.92,2.1972]
[1748910486472,10.90091589,157.99,157.92,2.1972]
[1748910486663,6.3271,157.98,157.94,6.3283]
[1748910487174,0.0454793,157.98,157.94,6.37026789]
[1748910487474,0.0454793,157.98,157.95,6.328]
[1748910487665,0.0454793,157.98,157.94,0.04196789]
[1748910487861,0.0454793,157.98,157.95,6.3279]
[1748910488361,0.0454793,157.98,157.94,0.04196789]
[1748910488562,0.0454793,157.98,157.96,6.3278]
[1748910489472,0.0454793,157.98,157.94,0.04196789]
[1748910489473,0.0454793,157.98,157.97,6.3274]
[1748910490566,0.0454793,157.98,157.94,0.04196789]
[1748910491062,0.0454793,157.98,157.97,6.3274]
[1748910491262,0.0454793,157.98,157.94,0.04196789]
[1748910491663,0.0454793,157.98,157.95,6.3279]
[1748910492063,6.3725793,157.98,157.95,6.3279]
[1748910492263,0.0454793,157.98,157.95,6.3279]
[1748910492570,0.0454793,157.98,157.96,6.3277]
[1748910493463,0.0454793,157.98,157.94,0.04196789]
[1748910494764,6.3277,157.97,157.94,0.04196789]
[1748910495074,17.22861589,157.97,157.94,0.04196789]
[1748910495262,17.22861589,157.97,157.94,6.37036789]
[1748910496172,10.90091589,157.97,157.94,6.37036789]
[1748910496373,10.90091589,157.97,157.95,6.3281]
[1748910496871,10.90091589,157.97,157.94,0.04196789]
[1748910497667,10.90091589,157.95,157.94,0.04196789]
[1748910497969,10.90091589,157.95,157.87,5.81619363]
[1748910498171,10.90091589,157.91,157.87,12.14739363]
[1748910498671,6.3305,157.9,157.87,5.81619363]
[1748910498867,6.37344897,157.9,157.87,5.86449664]
[1748910499267,6.37344897,157.9,157.87,12.19579664]
[1748910499268,10.90091589,157.89,157.87,12.19579664]
[1748910499469,10.90091589,157.89,157.87,5.86449664]
[1748910499674,0.04294897,157.9,157.89,6.3306]
[1748910500775,41.12667268,157.95,157.94,6.3286]
[1748910501764,5.90667268,157.95,157.94,6.3286]
[1748910506882,16.80758857,157.95,157.93,0.04052472]
[1748910507379,23.13608857,157.95,157.93,0.04052472]
[1748910511784,2.54827268,157.95,157.93,0.04052472]
[1748910512982,2.54827268,157.95,157.94,6.3286]
[1748910514885,2.54827268,157.95,157.93,6.36922472]
[1748910515086,2.54827268,157.95,157.93,0.04052472]
[1748910515575,2.54827268,157.95,157.94,6.3286]
[1748910516087,2.54827268,157.95,157.93,0.04052472]
[1748910516490,13.44918857,157.95,157.93,0.04052472]
[1748910516688,6.3286,157.94,157.93,0.04052472]
[1748910517690,19.77758857,157.95,157.93,0.04052472]
[1748910518285,2.54827268,157.95,157.93,6.36952472]
[1748910518485,2.54827268,157.95,157.93,0.04052472]
[1748910519886,2.54827268,157.95,157.94,6.3286]
[1748910520388,8.87657268,157.95,157.93,0.04052472]
[1748910520591,19.77748857,157.95,157.93,0.04052472]
[1748910521492,2.54827268,157.95,157.93,6.36952472]
[1748910522088,10.90091589,157.94,157.93,0.04052472]
[1748910522690,17.22951589,157.94,157.93,0.04052472]
[1748910524085,10.90091589,157.94,157.93,0.04052472]
[1748910525688,2.54827268,157.95,157.93,0.04052472]
[1748910525689,13.44918857,157.95,157.93,0.04052472]
[1748910525890,19.77748857,157.95,157.93,0.04052472]
[1748910526093,2.54827268,157.95,157.93,0.04052472]
[1748910526286,2.54827268,157.95,157.93,6.36932472]
[1748910527499,8.87657268,157.95,157.93,0.04052472]
[1748910527795,2.54827268,157.95,157.93,0.04052472]
[1748910528194,17.22951589,157.94,157.93,0.04052472]
[1748910530287,10.90091589,157.94,157.93,0.04052472]
[1748910531001,17.22951589,157.94,157.93,0.04052472]
[1748910531896,6.3286,157.94,157.93,0.04052472]
[1748910532097,17.22951589,157.94,157.93,0.04052472]
[1748910533397,2.54827268,157.95,157.93,0.04052472]
[1748910533702,0.04831002,157.96,157.93,0.04052472]
[1748910533703,5.90646808,158.0,157.94,10.90091589]
[1748910534007,5.90646808,158.0,157.95,4.331]
[1748910534599,0.04029375,157.99,157.95,4.331]
[1748910535286,0.04029375,157.99,157.98,6.327]
[1748910537096,0.04029375,157.99,157.97,0.0406919]
[1748910537298,10.90091589,157.98,157.97,0.0406919]
[1748910537600,0.04029375,157.99,157.97,0.0406919]
[1748910539198,6.36699375,157.99,157.97,0.0406919]
[1748910539502,10.94120964,157.99,157.97,0.0406919]
[1748910540394,17.26800964,157.99,157.97,0.0406919]
[1748910542603,0.04029375,157.99,157.97,0.0406919]
[1748910543397,0.04029375,157.99,157.98,6.327]
[1748910544705,0.04029375,157.99,157.97,6.3678919]
[1748910544900,0.04029375,157.99,157.97,0.0406919]
[1748910545807,46.12120964,157.99,157.97,0.0406919]
[1748910546007,41.54719375,157.99,157.97,0.0406919]
[1748910546406,35.22029375,157.99,157.97,0.0406919]
[1748910546704,6.327,157.98,157.97,0.0406919]
[1748910547008,35.22029375,157.99,157.97,0.0406919]
[1748910547407,17.22791589,157.98,157.97,0.0406919]
[1748910549612,35.22029375,157.99,157.97,0.0406919]
[1748910549812,0.04029375,157.99,157.97,0.0406919]
[1748910550199,0.04029375,157.99,157.98,6.327]
[1748910561321,7.87529077,158.02,157.97,0.0406919]
[1748910561506,7.87529077,158.02,157.98,10.91816042]
[1748910561707,47.33478934,158.05,158.0,10.91816042]
[1748910561917,47.33478934,158.05,158.04,6.3246]
[1748910562312,55.242085,158.05,158.04,6.3246]
[1748910562813,55.242085,158.05,158.03,0.04637984]
[1748910563618,55.242085,158.05,158.04,6.3246]
[1748910564418,55.242085,158.05,158.03,6.37117984]
[1748910564916,55.242085,158.05,158.03,0.04637984]
[1748910567221,6.3246,158.04,158.03,0.04637984]
[1748910567423,17.24276042,158.04,158.03,0.04637984]
[1748910567620,139.15816042,158.04,157.95,46.83574084]
[1748910567920,10.91816042,158.01,157.95,11.71574084]
[1748910568115,10.91816042,157.99,157.95,11.71574084]
[1748910568420,17.24556042,157.97,157.95,11.71574084]
[1748910568622,10.91816042,157.97,157.95,11.76012869]
[1748910569925,6.3282,157.95,157.93,15.62098779]
[1748910570224,52.36636042,157.95,157.93,15.62098779]
[1748910570726,52.36636042,157.95,157.93,15.66588174]
[1748910571725,46.03816042,157.95,157.92,42.94248863]
[1748910571920,10.91816042,157.93,157.92,42.94248863]
[1748910574031,0.04170415,157.94,157.92,42.94248863]
[1748910574332,10.95986457,157.94,157.92,42.94248863]
[1748910575236,7.37938597,157.93,157.92,42.94248863]
[1748910575734,13.70838597,157.93,157.92,42.94248863]
[1748910576730,6.3294,157.92,157.91,23.47602633]
[1748910576929,0.04170415,157.94,157.91,23.47602633]
[1748910578125,0.04170415,157.94,157.93,6.329]
[1748910587449,0.04170415,157.94,157.92,6.3291]
[1748910589459,0.04170415,157.94,157.93,6.329]
[1748910590654,0.04170415,157.94,157.92,6.3292]
[1748910590953,7.42109012,157.94,157.92,6.3292]
[1748910592153,7.42109012,157.94,157.93,6.3289]
[1748910592751,7.42109012,157.94,157.92,6.3291]
[1748910594359,7.42109012,157.94,157.93,6.3289]
[1748910595757,7.42109012,157.94,157.91,23.47602633]
[1748910596256,13.74989012,157.94,157.91,29.80552633]
[1748910596461,13.74989012,157.94,157.91,23.47602633]
[1748910596763,7.42109012,157.94,157.91,23.47602633]
[1748910597077,6.3291,157.93,157.91,23.47602633]
[1748910597358,7.37938597,157.92,157.91,23.47602633]
[1748910597560,13.70868597,157.92,157.91,23.47602633]
[1748910597771,48.80868597,157.92,157.91,23.47602633]
[1748910598155,177.04868597,157.92,157.91,23.47602633]
[1748910598359,6.3297,157.91,157.9,11.71533877]
[1748910600363,13.70948597,157.9,157.89,0.04586688]
[1748910600962,35.1,157.92,157.89,0.04586688]
[1748910601564,35.1,157.92,157.9,6.3298]
[1748910601764,35.1,157.92,157.89,0.04586688]
[1748910601965,35.1,157.92,157.9,6.3301]
[1748910602761,35.1,157.92,157.91,6.3297]
[1748910602965,0.04170415,157.94,157.89,0.04586688]
[1748910603168,7.42109012,157.94,157.89,0.04586688]
[1748910603368,13.74969012,157.94,157.9,6.3301]
[1748910603870,6.37030415,157.94,157.91,6.3297]
[1748910604071,0.04170415,157.94,157.89,0.04586688]
[1748910604571,0.04170415,157.94,157.91,6.3294]
[1748910605068,0.04170415,157.94,157.92,6.3293]
[1748910605367,0.04170415,157.94,157.89,0.04586688]
[1748910606266,35.1,157.97,157.91,7.37938597]
[1748910606469,11.8656039,157.99,157.93,7.37938597]
[1748910606664,11.8656039,157.99,157.95,7.37938597]
[1748910606870,11.8656039,157.99,157.98,6.3269]
[1748910607870,11.86486553,158.01,157.97,7.42287898]
[1748910608669,11.90496407,158.01,157.97,7.42287898]
[1748910608875,15.82067769,158.04,158.03,6.3249]
[1748910609665,15.82067769,158.04,158.0,35.1]
[1748910609973,15.86560987,158.04,158.01,7.37938597]
[1748910610359,15.86560987,158.04,158.03,6.3249]
[1748910610767,78.96403903,158.05,158.03,7.37938597]
[1748910610969,39.54746201,158.06,158.03,7.37938597]
[1748910611365,39.54746201,158.06,158.0,35.14496045]
[1748910611567,39.54746201,158.06,158.03,7.37938597]
[1748910611875,39.59118714,158.06,158.03,7.37938597]
[1748910612080,39.59118714,158.06,158.05,6.3241]
[1748910612274,39.59118714,158.06,158.04,0.04515512]
[1748910612470,39.59118714,158.06,158.05,7.37938597]
[1748910612789,39.59118714,158.06,158.05,48.84348597]
[1748910612965,47.36404376,158.07,158.05,48.84348597]
[1748910612966,27.89671627,158.07,158.05,48.83938597]
[1748910613166,15.73815973,158.09,158.06,7.37938597]
[1748910613367,39.44775992,158.1,158.09,7.37938597]
[1748910613673,39.44775992,158.1,158.09,48.84188597]
[1748910614066,39.44775992,158.1,158.09,41.4625]
[1748910614266,39.44775992,158.1,158.09,48.84188597]
[1748910614462,20.24365992,158.1,158.09,41.4625]
[1748910614667,20.24365992,158.1,158.09,48.84188597]
[1748910614875,20.24365992,158.1,158.09,41.4625]
[1748910615175,20.24365992,158.1,158.08,0.04655622]
[1748910618378,20.24365992,158.1,158.09,6.3224]
[1748910619977,20.24365992,158.1,158.08,0.04655622]
[1748910621380,10.90537351,158.09,158.08,0.04655622]
[1748910621677,17.22777351,158.09,158.08,0.04655622]
[1748910621882,10.90537351,158.09,158.01,7.79890775]
[1748910622381,59.01455992,158.1,158.02,47.48537351]
[1748910622576,22.43455992,158.1,158.02,47.48537351]
[1748910622881,0.04192247,158.08,158.04,0.04689591]
[1748910623377,0.04192247,158.08,158.04,6.37099591]
[1748910623571,0.04192247,158.08,158.04,0.04689591]
[1748910623773,0.04192247,158.08,158.05,33.61193365]
[1748910623972,0.04192247,158.08,158.05,18.33378199]
[1748910624172,0.04192247,158.08,158.07,11.69808143]
[1748910624478,6.324,158.05,158.04,0.04689591]
[1748910624870,6.3248,158.04,158.02,15.59744191]
[1748910625071,10.90537351,158.06,158.02,15.59744191]
[1748910625280,10.90537351,158.04,158.02,15.59744191]
[1748910625775,47.48537351,158.05,158.02,15.59744191]
[1748910625981,6.3244,158.04,158.03,6.71011949]
[1748910626178,47.52944922,158.05,158.02,27.65916111]
[1748910626373,10.90537351,158.03,158.02,8.93371742]
[1748910626576,6.3252,158.02,158.01,7.79890775]
[1748910627276,6.3252,158.02,157.97,19.49680239]
[1748910627477,10.90537351,158.01,157.97,19.49680239]
[1748910627681,10.95263953,158.01,157.97,19.54177572]
[1748910627982,47.53263953,158.01,157.97,19.54177572]
[1748910628173,6.3268,157.99,157.97,19.54177572]
[1748910628479,47.53263953,158.01,157.97,19.54177572]
[1748910628683,47.53263953,158.01,157.98,2.92790249]
[1748910628684,6.3261,158.0,157.98,2.92790249]
[1748910628872,10.90537351,158.0,157.97,19.54177572]
[1748910629380,17.23157351,158.0,157.97,19.54177572]
[1748910630079,36.62726602,158.01,157.97,19.54177572]
[1748910630781,42.95306602,158.01,157.97,19.54177572]
[1748910630980,36.62726602,158.01,157.97,19.54177572]
[1748910631184,36.62726602,158.01,157.98,14.0541086]
[1748910631394,36.62726602,158.01,157.98,6.3269]
[1748910631581,36.62726602,158.01,157.97,19.54177572]
[1748910632586,36.62726602,158.01,157.98,6.3266]
[1748910632987,0.04726602,158.01,157.98,6.3266]
[1748910633186,0.04726602,158.01,157.99,6.3265]
[1748910634188,0.04726602,158.01,158.0,2.92800099]
[1748910634593,0.04726602,158.01,157.98,6.3267]
[1748910634892,0.04726602,158.01,157.97,19.54177572]
[1748910636291,0.04726602,158.01,157.98,6.3266]
[1748910636881,0.04726602,158.01,157.97,19.54177572]
[1748910637179,0.04726602,158.01,157.98,14.6405663]
[1748910637379,0.04726602,158.01,158.0,6.3261]
[1748910639289,0.04726602,158.01,157.98,5.9545399]
[1748910639488,0.04726602,158.01,158.0,11.76585743]
[1748910639980,0.04726602,158.01,158.0,41.42625876]
[1748910641489,6.37296602,158.01,158.0,41.42625876]
[1748910641684,6.37296602,158.01,158.0,44.35433785]
[1748910642185,47.51588323,158.03,158.0,44.35433785]
[1748910642584,47.51588323,158.03,158.0,50.35646374]
[1748910642791,6.4157,158.02,157.98,5.9545399]
[1748910642991,10.91588323,158.0,157.98,5.9545399]
[1748910643390,36.6,157.99,157.97,55.03713491]
[1748910643587,10.91588323,157.98,157.97,55.03713491]
[1748910643895,10.91588323,157.98,157.94,44.51596073]
[1748910644096,40.8428,158.02,157.94,44.51596073]
[1748910644287,6.3259,158.01,157.95,2.217]
[1748910644685,0.04350775,158.0,157.97,6.327]
[1748910645900,6.3265,157.99,157.96,6.37498329]
[1748910646090,6.3265,157.99,157.96,0.04738329]
[1748910646292,10.95939098,158.0,157.96,0.04738329]
[1748910646601,6.3273,157.97,157.96,0.04738329]
[1748910647302,6.3281,157.95,157.94,44.51596073]
[1748910648100,6.3285,157.94,157.93,15.63874651]
[1748910648292,47.51588323,157.94,157.91,17.50553186]
[1748910648490,10.91588323,157.92,157.87,31.24197559]
[1748910648695,17.24638323,157.89,157.87,31.24197559]
[1748910648991,10.91588323,157.89,157.87,31.24197559]
[1748910649386,6.3305,157.89,157.87,31.28490848]
[1748910650701,0.04247681,157.9,157.87,37.61610848]
[1748910651002,0.04247681,157.9,157.87,31.28490848]
[1748910651701,43.0705,157.89,157.87,31.28490848]
[1748910652194,53.98638323,157.89,157.87,31.28490848]
[1748910653809,6.3309,157.88,157.87,31.28490848]
[1748910654101,6.3309,157.88,157.87,21.65820848]
[1748910655192,43.0706,157.89,157.87,21.65820848]
[1748910655390,0.04247681,157.9,157.87,21.65820848]
[1748910656203,6.37277681,157.9,157.87,21.65820848]
[1748910656501,0.04247681,157.9,157.87,21.65820848]
[1748910657900,0.04247681,157.9,157.88,6.3306]
[1748910658400,0.04247681,157.9,157.87,27.98940848]
[1748910659492,0.04247681,157.9,157.88,6.3306]
[1748910659801,0.04247681,157.9,157.87,21.65820848]
[1748910660203,0.04247681,157.9,157.88,6.3308]
[1748910660400,0.04247681,157.9,157.87,21.65820848]
[1748910660596,36.76,157.95,157.88,10.91588323]
[1748910660999,6.3278,157.96,157.9,10.91588323]
[1748910661302,130.98,157.97,157.91,2.0869]
[1748910661607,0.04107289,157.96,157.92,0.04272444]
[1748910662005,0.04107289,157.96,157.93,6.3286]
[1748910662909,0.04107289,157.96,157.92,10.95860767]
[1748910663103,0.04107289,157.96,157.92,0.04272444]
[1748910663307,0.04107289,157.96,157.93,6.3286]
[1748910663503,0.04107289,157.96,157.92,0.04272444]
[1748910664206,0.04107289,157.96,157.92,10.95860767]
[1748910664598,0.04107289,157.96,157.95,6.3281]
[1748910664799,36.76,157.99,157.92,0.04272444]
[1748910665117,36.76,157.99,157.93,2.1274]
[1748910665317,6.327,157.98,157.94,6.3283]
[1748910665607,36.76,157.99,157.92,0.04272444]
[1748910665608,47.67588323,157.99,157.92,0.04272444]
[1748910665814,10.95571314,157.97,157.92,0.04272444]
[1748910666199,6.3284,157.95,157.92,0.04272444]
[1748910666910,10.95571314,157.97,157.92,0.04272444]
[1748910667113,10.95571314,157.97,157.92,6.37202444]
[1748910667304,6.3285,157.94,157.92,0.04272444]
[1748910667501,10.95571314,157.97,157.92,0.04272444]
[1748910668004,0.03982991,157.97,157.92,0.04272444]
[1748910669506,0.03982991,157.97,157.94,6.3282]
[1748910669910,0.03982991,157.97,157.92,13.13730767]
[1748910670118,36.76,157.99,157.96,6.3277]
[1748910670414,168.3,158.02,157.92,13.09458323]
[1748910671001,6.3265,157.99,157.95,6.3281]
[1748910671307,0.04255889,157.99,157.95,6.36852587]
[1748910671704,6.327,157.98,157.95,0.04042587]
[1748910671905,10.95844212,157.99,157.95,0.04042587]
[1748910672219,36.74,157.98,157.95,0.04042587]
[1748910672711,6.3277,157.96,157.95,0.04042587]
[1748910673514,6.3277,157.96,157.95,2.587e-05]
[1748910674321,17.25588323,157.96,157.87,5.9900327]
[1748910674611,10.91588323,157.89,157.87,5.9900327]
[1748910674802,6.3309,157.88,157.87,5.9900327]
[1748910675004,36.74,157.89,157.87,5.9900327]
[1748910676010,43.0706,157.89,157.87,5.9900327]
[1748910676210,36.74,157.89,157.87,5.9900327]
[1748910676418,6.3309,157.88,157.87,5.9900327]
[1748910676617,36.74,157.89,157.87,5.9900327]
[1748910677009,43.0708,157.89,157.87,5.9900327]
[1748910677210,36.74,157.89,157.87,5.9900327]
[1748910678213,6.3309,157.88,157.87,5.9900327]
[1748910678521,142.83588323,157.88,157.86,8.85896675]
[1748910678715,6.3313,157.87,157.86,6.675e-05]
[1748910679228,6.3317,157.86,157.85,24.54664091]
[1748910679521,17.24758323,157.86,157.85,24.54664091]
[1748910680115,22.47795406,157.86,157.85,24.54664091]
[1748910682320,22.4967053,157.86,157.85,24.54664091]
[1748910682621,17.24758323,157.86,157.85,24.54664091]
[1748910682822,22.4967053,157.86,157.85,24.54664091]
[1748910683018,17.24758323,157.86,157.85,24.54664091]
[1748910683318,22.4967053,157.86,157.85,24.54664091]
[1748910683921,36.74,157.89,157.85,24.54664091]
[1748910683922,5.24912207,157.87,157.85,30.87874091]
[1748910684109,5.24912207,157.88,157.85,24.54664091]
[1748910684317,10.91588323,157.88,157.85,24.54664091]
[1748910684711,36.74,157.89,157.85,24.54664091]
[1748910684928,5.26775153,157.87,157.85,24.54664091]
[1748910685127,42.00775153,157.89,157.85,24.54664091]
[1748910685729,36.74,157.89,157.85,24.54664091]
[1748910685931,36.74,157.89,157.86,4.2596]
[1748910686223,36.74,157.89,157.87,6.3312]
[1748910686428,36.74,157.89,157.86,4.2596]
[1748910688530,6.3312,157.88,157.86,4.2596]
[1748910688718,36.74,157.89,157.86,4.2596]
[1748910688913,36.74,157.89,157.87,6.3313]
[1748910689114,0.04642682,157.9,157.86,4.2596]
[1748910689322,5.26010105,157.92,157.9,6.3298]
[1748910689524,5.26010105,157.93,157.9,6.3298]
[1748910689834,546.88,157.94,157.9,6.3298]
[1748910690021,6.329,157.93,157.89,6.3303]
[1748910690223,6.37619664,157.93,157.89,0.04575856]
[1748910691122,6.37619664,157.93,157.9,6.3301]
[1748910691315,37.28,157.95,157.89,0.04575856]